Cogmind - Beta 10.2 @@@ ROGUE MODE // 2021.09.19 @ 12:16:22 Player: Bunch Result: Destroyed by G-34 Mercenary with Small Laser Performance ------------- Evolutions (0) 0 Regions Visited (1) 200 Robots Destroyed (14) 70 Value Destroyed (274) 274 Prototype IDs (0) 0 Alien Tech Used (0) 0 Bonus (0) 0 TOTAL SCORE: 544 Bonus ------- None Cogmind --------- Core Integrity 0/250 Matter 289/300 Energy 100/100 System Corruption 1% Temperature Cool (15) Movement Core (550) Ox10 Location -10/Materials Parts ------- > --- POWER (1) -------- (None) > --- PROPULSION (2) --- (None) > --- UTILITY (2) ------ High-capacity Storage Unit Terrain Scanner > --- WEAPON (2) ------- (None) > --- INVENTORY (12) --- Small Laser Peak State ------------ > --- POWER ------------ Ion Engine > --- PROPULSION ------- Light Treads Light Treads > --- UTILITY ---------- High-capacity Storage Unit Terrain Scanner > --- WEAPON ----------- Small Laser Grenade Launcher > --- INVENTORY -------- (None) [Rating: 7] Favorites ----------- Power Ion Engine Engine Ion Engine Power Core Light Nuclear Core Propulsion Light Treads Treads Light Treads Utility High-capacity Storage Unit Device Terrain Scanner Storage High-capacity Storage Unit Weapon Small Laser Energy Gun Small Laser Ballistic Gun Light Assault Rifle Launcher Grenade Launcher Special Weapon Welding Torch Build | -11 -10 ------- Run | Scr Mat Slots Evolved . | . . Power . | . . Propulsion . | . . Utility . | . . Weapon . | . . Parts Attached 13 | 6 7 Power 2 | 1 1 Engine 1 | 1 . Core 1 | . 1 Reactor . | . . Propulsion 2 | 2 . Treads 2 | 2 . Leg . | . . Wheel . | . . Hover . | . . Flight . | . . Utility 3 | 1 2 Device 1 | . 1 Storage 2 | 1 1 Processor . | . . Hackware . | . . Protection . | . . Artifact . | . . Weapon 6 | 2 4 Energy Gun 2 | 1 1 Energy Cannon . | . . Ballistic Gun 1 | 1 . Ballistic Cannon . | . . Launcher 2 | . 2 Special Weapon 1 | . 1 Impact Weapon . | . . Slashing Weapon . | . . Piercing Weapon . | . . Special Melee Weapon . | . . Unidentified Prototypes . | . . Parts Lost 9 | . 9 Power 2 | . 2 Propulsion 2 | . 2 Utility . | . . Weapon 5 | . 5 Highest Loss Streak 4 | . 4 Average Slot Usage (%) 83 | . 83 Engine 10 | . 10 Core 2 | . 2 Treads 24 | . 24 Device 8 | . 8 Storage 14 | . 14 Energy Gun 10 | . 10 Ballistic Gun 3 | . 3 Launcher 6 | . 6 Special Weapon 1 | . 1 Naked Turns . | . . Heaviest Build 42 | 12 42 Greatest Support 40 | 40 40 Greatest Overweight (x) 12 | 2 12 Average Overweight (x) . | . . Largest Inventory Capacity 12 | 6 12 Average Capacity 11 | 5 11 Most Carried 3 | 3 2 Average Carried . | 1 . Final Capacity 12 | 6 12 Final Carried 1 | 1 1 Class Distribution -------------------- 100% | Mutant Dominant Class ---------------- Mutant | -10/Materials Resources | -11 -10 ----------- Run | Scr Mat Matter Collected 452 | 203 249 Remotely . | . . Salvage Created 435 | . 435 Parts 21 | . 21 Haulers Intercepted . | . . Recyclers Shooed . | . . Parts Field Recycled . | . . Retrieved Matter . | . . Parts Self-Destructed . | . . Prevented . | . . Kills | -11 -10 ------- Run | Scr Mat Combat Hostiles Destroyed 6 | . 6 Guns 4 | . 4 Cannons 1 | . 1 AOE 1 | . 1 Classes Destroyed 5 | . 5 Worker 4 | . 4 Builder 1 | . 1 Recycler 2 | . 2 Watcher 1 | . 1 Grunt 6 | . 6 Best Kill Streak 5 | . 5 Combat Bots Only 2 | . 2 Max Kills in Single Turn 2 | . 2 Gunslinging . | . . Exploded 1 | . 1 Melee . | . . Uniques/NPCs Destroyed . | . . Combat | -11 -10 -------- Run | Scr Mat Damage Taken 1076 | . 1076 Core 258 | . 258 Absorbed by Shields . | . . Core Remaining (%) 100 | 100 . Volleys Fired 77 | . 77 Largest 2 | . 2 Hottest 70 | . 70 Shots Fired 112 | . 112 Gun 93 | . 93 Cannon . | . . Launcher 13 | . 13 Special 6 | . 6 Kinetic 28 | . 28 Thermal 71 | . 71 Explosive 13 | . 13 Electromagnetic . | . . Robot Hit Streak 10 | . 10 Robot Miss Streak 3 | . 3 Penetration Max . | . . Secondary Targets . | . . Shots Hit Robots 66 | . 66 Core Hits 34 | . 34 Critical Hits . | . . Critical Kills . | . . Critical Parts Destroyed . | . . Melee Attacks . | . . Impact . | . . Slashing . | . . Piercing . | . . Sneak Attacks . | . . Combat Hostiles . | . . Follow-up Attacks . | . . Damage Inflicted 1119 | . 1119 Guns 634 | . 634 Cannons . | . . Explosions 469 | . 469 Melee . | . . Ramming . | . . Kinetic 143 | . 143 Thermal 572 | . 572 Explosive 404 | . 404 Electromagnetic . | . . Impact . | . . Slashing . | . . Piercing . | . . Highest Corruption 1 | . 1 Average Corruption 1 | . 1 Corruption Purged . | . . Overload Shots . | . . Overflow Damage 51 | . 51 Projectiles . | . . Explosions 51 | . 51 Melee . | . . Knockbacks . | . . Impact . | . . Kinetic . | . . Secondary . | . . Self-Inflicted Damage 210 | . 210 Shots 5 | . 5 Rammed . | . . Targets Rammed . | . . Kicked . | . . Crushed . | . . Highest Temperature 148 | . 148 Average Temperature 46 | . 46 Received Heat Transfer 480 | . 480 Siege Activations . | . . Robots Corrupted . | . . Combat Hostiles . | . . Parts Fried . | . . Impact Corruptions . | . . Robots Melted . | . . Combat Hostiles . | . . Parts Melted . | . . Heat Transferred 1466 | . 1466 Parts Sabotaged . | . . Parts Stolen . | . . Parts Stripped . | . . Power Chain Reactions . | . . Missiles Intercepted . | . . Alert | -11 -10 ------- Run | Scr Mat Peak Influence 130 | . 130 Initial . | . . Average 40 | . 43 Maximum Alert Level . | . . Low Security (%) 100 | 100 100 Level 1 . | . . Level 2 . | . . Level 3 . | . . Level 4 . | . . Level 5 . | . . High Security . | . . Max Security . | . . Squads Dispatched 3 | . 3 Investigation . | . . Extermination . | . . Reinforcement 3 | . 3 Assault . | . . Garrison . | . . Intercept . | . . Construction Impeded . | . . Haulers Reinforced . | . . Stealth | -11 -10 --------- Run | Scr Mat Distress Signals 1 | . 1 Communications Jammed . | . . Distress Signals . | . . Times Spotted 23 | . 23 Peak Tracking Total 3 | . 3 Tactical Retreats . | . . Traps | -11 -10 ------- Run | Scr Mat Traps Triggered 1 | . 1 Indirectly . | . . Trap Hack Attempts . | . . Triggered . | . . Disarmed . | . . Reprogrammed . | . . Reused . | . . Traps Extracted . | . . Installed . | . . Triggered . | . . Machines | -11 -10 ---------- Run | Scr Mat Machines Disabled 2 | . 2 Max in Single Turn 2 | . 2 Machines Sabotaged . | . . Garrisons Compromised . | . . Overloaded Fab Kills . | . . Fab Network Shutdowns . | . . Hacking | -11 -10 --------- Run | Scr Mat Machines Accessed 2 | . 2 Terminals 2 | . 2 Fabricators . | . . Repair Stations . | . . Recycling Units . | . . Scanalyzers . | . . Garrison Access . | . . Total Hacks 5 | . 5 Successful 4 | . 4 Failed 1 | . 1 Catastrophic . | . . Database Lockouts . | . . Manual 1 | . 1 Terminals 5 | . 5 Fabricators . | . . Repair Stations . | . . Recycling Units . | . . Scanalyzers . | . . Garrison Access . | . . Terminal Hacks 4 | . 4 Part Schematic 1 | . 1 Emergency Access Points 1 | . 1 Maintenance Status 1 | . 1 Zone Layout 1 | . 1 Fabricator Hacks . | . . Repair Station Hacks . | . . Recycling Unit Hacks . | . . Scanalyzer . | . . Garrison Access Hacks . | . . Unauthorized Hacks . | . . Terminals . | . . Fabricators . | . . Repair Stations . | . . Recycling Units . | . . Scanalyzers . | . . Garrison Access . | . . Data Cores Recovered . | . . Used . | . . Hacking Detections . | . . Full Trace Events . | . . Feedback Events . | . . Feedback Blocked . | . . Robot Schematics Acquired . | . . Robots Built . | . . Matter . | . . Time . | . . Total Robot Build Rating . | . . Part Schematics Acquired 1 | . 1 Parts Built . | . . Matter . | . . Time . | . . Total Part Build Rating . | . . Parts Repaired . | . . Time . | . . Parts Recycled . | . . Recycled Matter . | . . Retrieved Matter . | . . Retrieved Components . | . . Parts Scanalyzed . | . . Part Schematics Acquired . | . . Parts Damaged . | . . Bothacking | -11 -10 ------------ Run | Scr Mat Used RIF Installer . | . . Robots Hacked . | . . Non-combat . | . . Combat . | . . Robot Hacks Applied . | . . Relay Couplers Released . | . . Robots Rewired . | . . Allies Hacked . | . . Hacks Repelled . | . . Allies | -11 -10 -------- Run | Scr Mat Total Allies . | . . Largest Group . | . . Highest-Rated Group . | . . Highest-Rated Ally . | . . Total Orders . | . . Ally Attacks . | . . Total Damage . | . . Kills . | . . Allies Corrupted . | . . Allies Melted . | . . Intel | -11 -10 ------- Run | Scr Mat Robot Analysis Total . | . . Derelict Logs Recovered . | . . Drone Launches . | . . Drone Recoveries . | . . Exploration | -11 -10 ------------- Run | Scr Mat Turns Passed 1169 | 96 1073 Spaces Moved 560 | 71 489 Core 47 | 44 3 Treads 513 | 27 486 Legs . | . . Wheels . | . . Hover . | . . Flight . | . . Fastest Speed 50 | 50 160 Average Speed 167 | 113 175 Slowest Speed 650 | 160 650 Overloaded Moves . | . . Propulsion Burnouts . | . . Robots Hopped . | . . Cave-ins Triggered . | . . Exploration Rate (%) 33 | 5 62 Regions Visited 1 Branch Regions . Pre-discovered Areas . | . . Known Exits Taken . | . . Unknown Exits Taken 1 | 1 . Scrap Searched . | . . Spaces Dug . | . . Terrain Destroyed 70 | . 70 Melee . | . . Projectile . | . . AOE 70 | . 70 Terrain Rammed . | . . Walls Destroyed . | . . Machines Disabled . | . . Actions | -11 -10 --------- Run | Scr Mat Total 684 | 86 598 Wait 20 | 3 17 Move 559 | 70 489 Hop . | . . Pick Up 13 | 7 6 Fast Attach . | . . Attach 13 | 6 7 Detach 1 | . 1 Swap . | . . Drop 1 | . 1 Fire 77 | . 77 Melee . | . . Ram . | . . Kick . | . . Crush . | . . Escape Stasis . | . . Rewire . | . . Trap . | . . Miscellaneous . | . . Route ------- -11/Scrapyard -10/Materials (discovered 2 exits: [*Mat x2]) History --------- Turn | Location | Event 13 | -11/Scrapyard | Discovered new exit (range 16) 97 | -11/Scrapyard | Entered Materials 301 | -10/Materials | Build established: Mutant 753 | -10/Materials | Discovered new exit (range 11) 840 | -10/Materials | Discovered new exit (range 11) 926 | -10/Materials | Core integrity fell below 50% 950 | -10/Materials | Lost 4 parts (1p1n2w) 1167 | -10/Materials | Core integrity fell below 20% 1170 | -10/Materials | Destroyed by G-34 Mercenary with Small Laser Last Messages --------------- 00963_ U-05 Engineer builds a Wall. 00968_ U-05 Engineer lays Concrete. 00970_ U-05 Engineer builds a Wall. 00974_ U-05 Engineer lays Concrete. 00994_ U-05 Engineer builds a Door. 01001_ Acquired 7 matter. 01001_ U-05 Engineer lays Concrete. 01003_ Grenade Launcher destroyed. 01003_ Destroyed Grenade Launcher. 01005_ Fusion Modulator explodes. 01005_ Destroyed Lgt. Ion Engine. 01005_ Electrolysis Chamber disabled. 01127_ U-05 Engineer builds a Wall. 01131_ K-01 Serf collects debris. 01136_ U-05 Engineer lays Concrete. 01139_ U-05 Engineer builds a Wall. 01141_ U-05 Engineer lays Concrete. 01142_ U-05 Engineer builds a Wall. 01152_ Lgt. Treads destroyed. 01164_ Lgt. Nuclear Core destroyed. Map ----- +----------------------------------------------------+ | " #?????????# #?????????????????????# #?????????? | | " #??##????## #?#?????????????##????# #?????????? | | #?????##### #?????????????????????# ##?#????#?? | | ######### #??#??????????????????# #?????????? | | #?????????????????????# #?????????? | | T #?????????????????????# #?????????? | | #????????#?????#?????## #??######## | | ######### #????????????#?#?#???## #???# | | # ### ##???#??????#?#?######## #???# """ | | # #?# #?????????#??##?# # ##?## """ | | # #?# #????#?#?#??????# # ##?## """ | | # ### #?#?????#??##???# """ # #???# | | # #?# #??????#??###???# """ # ##### """ | | # #?# #????????#?#???## # + """ | | # ###% ##???????????#### + ##### """ | | # ## ############# ## ##""# ##??# | | + ## k # # "####+##### | | # ## # / # | | # ## k # # # | | ####+#### g + ###"####+## # | | ?# ### # # # # | | ?# g# """ #? # | | ?# % ######### m # " "Y" #??# | | ?# ###+##????#??# ##"""""# " " #??? | | ?## ##????? ?????## ######## !#??? | | ??# #?? ??"???#???# @ #?????## """"" #??? | | ??# #?????????????# # ######???#??# """"" ##?? | | ??# #????? ???#???# ######??????#?# """"" #??? | | ??# ??????????????# < #???#???#?????# #??? | | ?? ??????????????# #?????????????##########??? | | ?? ??????????????#####?#???????????????????????? | | ??###??????????##???????????????????#????????????? | | ???????????????#????#????????????????????????????? | | ????????????????????????????????#?#??????????????? | | ?????????#???????????????????????????????????????? | | ?????????????????????????????????????????????????? | | ????????????????????????#????????????????????????? | | | | | | | | | | | | | | | | | | | | | | | | | | | +----------------------------------------------------+ Best States ------------- Heat Dissipation 25 Energy Generation 14 Energy Capacity 250 Matter Stores 300 Matter Capacity 300 Sight Range 16 Terrain Scan Range 14 Terrain Scan Density 10 Evasion (%) 50 Recoil Reduction 2 Item Schematics ----------------- Lgt. Treads | -10/Materials | Hacked Robot Schematics ------------------ None Fabricated ------------ Nothing Alien Tech Used ----------------- None Achievements -------------- None Challenges ------------ None Game ------ Seed MasterFluxSuite Manual? 0 Play Time 00:12:46 Cumulative 4.3 hours Start 2021.09.19 @ 12:06:12 End 2021.09.19 @ 12:16:22 Sessions 1 Manual Loads 0 Difficulty Rogue Special Mode None Game No. 6 Rogue 1 Adventurer 5 Explorer 0 Win Type - Total 0 Types 0/0/0/0/0/0/0/0/0 Lore% 2 Gallery% 10 Achievement% 6 Wizard Run 0 Options --------- ASCII 0 Keyboard 0 Movement Mouse Keybinds 0 Fullscreen 2 Font 18/SmallcapsGlow Map View 76x50 Tactical HUD 1 Map Filters NONE Filters NONE Steam 1 RUN: dbe76517-5877-4cad-b93d-b0baa7286640